Cogmind - Beta 13 @@@ ROGUE MODE // 2024.04.07 @ 17:25:52 Player: Hazel Olivia Result: Destroyed by D-53 Grenadier with Mini Grenade Launcher Performance ------------- Evolutions (0) 0 Regions Visited (2) 400 Robots Destroyed (17) 85 Value Destroyed (339) 339 Prototype IDs (0) 0 Alien Tech Used (0) 0 Bonus (0) 0 TOTAL SCORE: 824 Bonus ------- None Cogmind --------- Core Integrity 0/250 Matter 297/300 Energy 250/250 System Corruption 10% Temperature Cool (0) Movement Treading (160) Location -10/Mines Parts ------- > --- POWER (1) -------- Ion Engine > --- PROPULSION (2) --- Light Treads Light Treads > --- UTILITY (2) ------ Medium Storage Unit Weapon Shielding > --- WEAPON (2) ------- Light Cannon Hammer > --- INVENTORY (10) --- Large Matter Pod (150) Weight Redist. System Transport Network Coupler ECM Suite Hacking Suite Peak State ------------ > --- POWER ------------ Light Nuclear Core > --- PROPULSION ------- Light Treads Light Treads > --- UTILITY ---------- Small Storage Unit Weapon Shielding > --- WEAPON ----------- Assault Rifle Assault Rifle > --- INVENTORY -------- Ion Engine Large Matter Pod ECM Suite Hacking Suite Medium Laser Light Assault Rifle Light Cannon Hammer [Rating: 10] Favorites ----------- Power Light Nuclear Core Engine Ion Engine Power Core Light Nuclear Core Propulsion Light Treads Treads Light Treads Utility Medium Storage Unit Device Sensor Array Storage Medium Storage Unit Protection Weapon Shielding Weapon Assault Rifle Energy Gun Medium Laser Ballistic Gun Assault Rifle Ballistic Cannon Light Cannon Impact Weapon Hammer Build | -11 -10 -10 ------- Run | Yrd Mat Min Slots Evolved . | . . . Power . | . . . Propulsion . | . . . Utility . | . . . Weapon . | . . . Parts Attached 20 | 6 9 5 Power 3 | 1 1 1 Engine 2 | 1 . 1 Core 1 | . 1 . Reactor . | . . . Propulsion 5 | 2 2 1 Treads 5 | 2 2 1 Leg . | . . . Wheel . | . . . Hover . | . . . Flight . | . . . Utility 5 | 1 3 1 Device 1 | . 1 . Storage 2 | 1 1 . Processor . | . . . Hackware . | . . . Protection 2 | . 1 1 Artifact . | . . . Weapon 7 | 2 3 2 Energy Gun 1 | 1 . . Energy Cannon . | . . . Ballistic Gun 3 | 1 2 . Ballistic Cannon 1 | . . 1 Launcher . | . . . Special Weapon . | . . . Impact Weapon 2 | . 1 1 Slashing Weapon . | . . . Piercing Weapon . | . . . Special Melee Weapon . | . . . Unidentified Prototypes . | . . . Parts Lost 5 | . . 5 Power 1 | . . 1 Propulsion 1 | . . 1 Utility 1 | . . 1 Weapon 2 | . . 2 Highest Loss Streak 4 | . . 4 To Critical Strikes . | . . . Average Slot Usage (%) 92 | . 92 91 Engine 4 | . 5 4 Core 7 | . 8 5 Treads 27 | . 27 26 Device 5 | . 5 5 Storage 14 | . 14 14 Protection 3 | . 1 8 Energy Gun 1 | . 2 . Ballistic Gun 20 | . 24 12 Ballistic Cannon 2 | . . 8 Impact Weapon 2 | . 1 6 Naked Turns . | . . . Heaviest Build 21 | 13 20 21 Greatest Support 40 | 40 40 40 Greatest Overweight (x) . | . . . Average Overweight (x) . | . . . Largest Inventory Capacity 10 | 8 10 10 Average Capacity 9 | 7 8 10 Most Carried 10 | 1 10 10 Average Carried 7 | . 7 7 Final Capacity 10 | 8 10 10 Final Carried 10 | 1 10 5 Class Distribution -------------------- 62% | Mutant 37% | Scavenger-Mutant Dominant Class ---------------- Mutant | -10/Materials Mutant | -10/Mines Resources | -11 -10 -10 ----------- Run | Yrd Mat Min Matter Collected 1000 | 260 509 231 Remotely . | . . . Salvage Created 627 | . 476 151 Parts 33 | . 33 . Haulers Intercepted 2 | . 2 . Recyclers Shooed . | . . . Parts Field Recycled . | . . . Retrieved Matter . | . . . Parts Self-Destructed . | . . . Prevented . | . . . Kills | -11 -10 -10 ------- Run | Yrd Mat Min Combat Hostiles Destroyed 19 | . 9 10 Melee 4 | . 3 1 Guns 8 | . 4 4 Cannons 5 | . . 5 Classes Destroyed 8 | . 6 2 Builder 1 | . 1 . Hauler 2 | . 2 . Recycler 1 | . . 1 Operator 1 | . 1 . Watcher 3 | . 3 . Swarmer 3 | . 3 . Grunt 6 | . 6 . Assembled 10 | . . 10 Best Kill Streak 7 | . 5 7 Combat Bots Only 6 | . 5 6 Max Kills in Single Turn 1 | . 1 1 Gunslinging . | . . . Exploded . | . . . Melee 1 | . 1 1 Uniques/NPCs Destroyed . | . . . Combat | -11 -10 -10 -------- Run | Yrd Mat Min Hostile Shots Fired 111 | . 59 52 Missed 24 | . 13 11 Damage Taken 1280 | . 517 763 Core 266 | . 43 223 Absorbed by Shields . | . . . Redirected to Shielding 28 | . . 28 Regen/Repaired (Parts) 226 | . 226 . Core Remaining (%) 100 | 100 . . Volleys Fired 90 | . 53 37 Largest 2 | . 2 2 Hottest 70 | . 70 55 Shots Fired 154 | . 104 50 Gun 132 | . 104 28 Cannon 22 | . . 22 Launcher . | . . . Special . | . . . Kinetic 149 | . 99 50 Thermal 5 | . 5 . Explosive . | . . . Electromagnetic . | . . . Robot Hit Streak 9 | . 9 5 Robot Miss Streak 6 | . 6 3 Penetration Max . | . . . Secondary Targets 1 | . . 1 Max Gunslinging Chain 1 | . . 1 Shots Hit Robots 107 | . 78 29 Core Hits 41 | . 25 16 Critical Kills 1 | . 1 . Critical Parts Destroyed 3 | . 3 . Critical Strikes 6 | . 6 . Burn 2 | . 2 . Destroy 2 | . 2 . Smash 2 | . 2 . Melee Attacks 17 | . 14 3 Impact 17 | . 14 3 Slashing . | . . . Piercing . | . . . Sneak Attacks 1 | . 1 . Combat Hostiles . | . . . Follow-up Attacks . | . . . Damage Inflicted 1597 | . 1119 478 Guns 1032 | . 831 201 Cannons 236 | . . 236 Explosions . | . . . Melee 324 | . 286 38 Ramming 5 | . 2 3 Kinetic 1205 | . 768 437 Thermal 63 | . 63 . Explosive . | . . . Electromagnetic . | . . . Impact 324 | . 286 38 Slashing . | . . . Piercing . | . . . Highest Corruption 10 | . . 10 Average Corruption 9 | . . 9 Corruption Purged . | . . . Corruption Blocked . | . . . Effects 14 | . . 14 Message Errors 4 | . . 4 Matter Fused 3 | . . 3 Heat Flow Errors 2 | . . 2 Energy Discharges 3 | . . 3 Data Loss (minor) 1 | . . 1 Weapon Failures 1 | . . 1 Overload Shots . | . . . Overflow Damage 76 | . 50 26 Projectiles . | . . . Explosions . | . . . Melee 76 | . 50 26 Knockbacks 3 | . . 3 Impact . | . . . Kinetic 3 | . . 3 Secondary . | . . . Self-Inflicted Damage . | . . . Shots . | . . . Rammed 1 | . 1 . Targets Rammed 2 | . 1 1 Kicked . | . . . Crushed 1 | . . 1 Highest Temperature 171 | . 98 171 Average Temperature 38 | . 24 59 Received Heat Transfer 451 | . 231 220 Siege Activations . | . . . Robots Corrupted . | . . . Combat Hostiles . | . . . Parts Fried 2 | . 2 . Impact Corruptions 6 | . 5 1 Robots Melted . | . . . Combat Hostiles . | . . . Parts Melted . | . . . Heat Transferred 333 | . 333 . Parts Sabotaged . | . . . Parts Stolen . | . . . Parts Stripped . | . . . Power Chain Reactions . | . . . Alert | -11 -10 -10 ------- Run | Yrd Mat Min Peak Influence 272 | . 272 86 Initial 28 | . . 28 Average 82 | . 108 43 Maximum Alert Level 1 | . 1 . Low Security (%) 96 | 100 94 100 Level 1 3 | . 5 . Level 2 . | . . . Level 3 . | . . . Level 4 . | . . . Level 5 . | . . . High Security . | . . . Max Security . | . . . Squads Dispatched 2 | . 2 . Investigation 1 | . 1 . Extermination . | . . . Reinforcement 1 | . 1 . Assault . | . . . Garrison . | . . . Intercept . | . . . Searches Triggered . | . . . Construction Impeded . | . . . Haulers Reinforced . | . . . Active Scanning Responses . | . . . Cargo Convoy Interrupts . | . . . Stealth | -11 -10 -10 --------- Run | Yrd Mat Min Distress Signals 1 | . 1 . Communications Jammed . | . . . Distress Signals . | . . . Times Spotted 39 | . 20 19 Peak Tracking Total 5 | . 5 5 Tactical Retreats 5 | . 1 4 Traps | -11 -10 -10 ------- Run | Yrd Mat Min Traps Triggered 1 | . 1 . Indirectly . | . . . Trap Hack Attempts . | . . . Triggered . | . . . Disarmed . | . . . Reprogrammed . | . . . Reused . | . . . Traps Extracted . | . . . Installed . | . . . Triggered . | . . . Machines | -11 -10 -10 ---------- Run | Yrd Mat Min Machines Disabled . | . . . Max in Single Turn . | . . . Machines Repaired . | . . . Machines Dismantled . | . . . Machines Sabotaged . | . . . Overloaded Fab Kills . | . . . Hacking | -11 -10 -10 --------- Run | Yrd Mat Min Machines Accessed 9 | . 8 1 Terminals 7 | . 6 1 Fabricators . | . . . Repair Stations 1 | . 1 . Recycling Units 1 | . 1 . Scanalyzers . | . . . Garrison Access . | . . . Total Hacks 23 | . 21 2 Successful 13 | . 12 1 Failed 10 | . 9 1 Catastrophic . | . . . Database Lockouts . | . . . Manual 7 | . 7 . Terminals 17 | . 15 2 Fabricators . | . . . Repair Stations 5 | . 5 . Recycling Units 1 | . 1 . Scanalyzers . | . . . Garrison Access . | . . . Terminal Hacks 8 | . 7 1 Level Access Points 1 | . . 1 Branch Access Points 1 | . 1 . Locate Traps 3 | . 3 . Hauler Manifests 1 | . 1 . Zone Layout 2 | . 2 . Fabricator Hacks . | . . . Repair Station Hacks 4 | . 4 . Scan Component 2 | . 2 . Repair 2 | . 2 . Recycling Unit Hacks 1 | . 1 . Report Inventory 1 | . 1 . Scanalyzer . | . . . Garrison Access Hacks . | . . . Unauthorized Hacks . | . . . Terminals . | . . . Fabricators . | . . . Repair Stations . | . . . Recycling Units . | . . . Scanalyzers . | . . . Garrison Access . | . . . Data Cores Recovered . | . . . Used . | . . . Hacking Detections 6 | . 5 1 Full Trace Events 2 | . 2 . Feedback Events . | . . . Feedback Blocked . | . . . Robot Schematics Acquired . | . . . Robots Built . | . . . Authchips . | . . . Time . | . . . Total Robot Build Rating . | . . . Part Schematics Acquired . | . . . Parts Built . | . . . Authchips . | . . . Time . | . . . Total Part Build Rating . | . . . Parts Repaired 2 | . 2 . Time 52 | . 52 . Parts Recycled . | . . . Recycled Matter . | . . . Retrieved Matter . | . . . Retrieved Components . | . . . Parts Scanalyzed . | . . . Part Schematics Acquired . | . . . Parts Damaged . | . . . Bothacking | -11 -10 -10 ------------ Run | Yrd Mat Min Used RIF Installer . | . . . Robots Hacked . | . . . Non-combat . | . . . Combat . | . . . Robot Hacks Applied . | . . . Relay Couplers Released . | . . . Fabnet Peak Effective % . | . . . Robots Rewired . | . . . Allies Hacked . | . . . Hacks Repelled . | . . . Allies | -11 -10 -10 -------- Run | Yrd Mat Min Total Allies . | . . . Largest Group . | . . . Highest-Rated Group . | . . . Highest-Rated Ally . | . . . Total Orders . | . . . Ally Attacks . | . . . Total Damage . | . . . Kills . | . . . Allies Corrupted . | . . . Allies Melted . | . . . Intel | -11 -10 -10 ------- Run | Yrd Mat Min Robot Analysis Total . | . . . Derelict Logs Recovered 1 | . . 1 Drone Launches . | . . . Drone Recoveries . | . . . Exploration | -11 -10 -10 ------------- Run | Yrd Mat Min Turns Passed 1732 | 73 1098 561 Spaces Moved 814 | 42 502 270 Core 3 | 3 . . Treads 811 | 39 502 270 Legs . | . . . Wheels . | . . . Hover . | . . . Flight . | . . . Fastest Speed 50 | 50 160 160 Average Speed 159 | 152 160 160 Slowest Speed 160 | 160 160 160 Overloaded Moves . | . . . Propulsion Burnouts . | . . . Robots Hopped . | . . . Cave-ins Triggered . | . . . Exploration Rate (%) 45 | 3 87 47 Regions Visited 2 Branch Regions 1 Pre-discovered Areas . | . . . Known Exits Taken 1 | . 1 . Unknown Exits Taken 1 | 1 . . Scrap Searched 2 | . . 2 Spaces Dug 2 | . . 2 Terrain Destroyed 2 | . . 2 Melee 2 | . . 2 Projectile . | . . . AOE . | . . . Terrain Rammed . | . . . Walls Destroyed . | . . . Machines Disabled . | . . . Actions | -11 -10 -10 --------- Run | Yrd Mat Min Total 1059 | 48 668 343 Wait 101 | . 74 27 Move 812 | 41 501 270 Hop . | . . . Pick Up 13 | 1 12 . Fast Attach 7 | 6 1 . Attach 6 | . 1 5 Detach . | . . . Swap 7 | . 7 . Drop 4 | . 4 . Fire 90 | . 53 37 Melee 17 | . 14 3 Ram . | . . . Kick . | . . . Crush 2 | . 1 1 Escape Stasis . | . . . Rewire . | . . . Trap . | . . . Miscellaneous . | . . . Route ------- -11/Scrapyard -10/Materials (discovered 4 exits: *Mat x3 / *Min) -10/Mines (discovered 3 exits: *Mat x2 / [*Exi]) History --------- Turn | Location | Event 12 | -11/Scrapyard | Discovered new exit (range 15) 74 | -11/Scrapyard | Entered Materials 87 | -10/Materials | Identified exit to Mines 303 | -10/Materials | Build established: Mutant 313 | -10/Materials | Discovered new exit (range 16) 500 | -10/Materials | Discovered new exit (range 12) 946 | -10/Materials | Discovered new exit (range 5) 1044 | -10/Materials | Build established: Scavenger-Mutant 1088 | -10/Materials | Repaired Lgt. Treads 1115 | -10/Materials | Repaired Lgt. Treads 1172 | -10/Materials | Entered Mines 1184 | -10/Mines | Identified exit to Materials 1228 | -10/Mines | Met a Derelict bent on vengeance 1242 | -10/Mines | Assembled infested the area 1247 | -10/Mines | Assisted by a Guerilla fighting off Assembled 1313 | -10/Mines | Learned location of 1 exit from Materials 1406 | -10/Mines | System corruption reached 10% 1409 | -10/Mines | Core integrity fell below 50% 1449 | -10/Mines | Core integrity fell below 20% 1461 | -10/Mines | Lost 4 parts (1p1u2w) 1656 | -10/Mines | Deemed a non-threat by the Exiles lab entrance 1657 | -10/Mines | Discovered new exit (range 5) 1686 | -10/Mines | Build established: Mutant 1733 | -10/Mines | Destroyed by D-53 Grenadier with Mini Grenade Launcher Last Messages --------------- 01510_ K-01 Serf collects debris. 01513_ R-06 Scavenger collects Corrupted Sml. Storage Unit. 01516_ K-01 Serf collects debris. 01530_ System corrupted: Matter fused (-8). 01550_ System corrupted: Component data lost. 01570_ System corrupted: Energy discharge (-29). 01573_ Acquired 26 matter. 01586_ System corrupted: Energy discharge (-51). 01601_ System corrupted: Matter fused (-8). 01648_ System corrupted: Heat flow error (+149). 01653_ U-05 Engineer builds a Wall. 01656_ "No threat detected, you may enter." 01657_ EXIT=FOUND 01676_ System corrupted: Matter fused (-6). 01684_ U-05 Engineer builds a Wall. 01689_ Acquired 6 matter. 01697_ Acquired 36 matter. 01718_ System corrupted: Energy discharge (-57). 01733_ The unstable cave ceiling collapses. Map ----- +----------------------------------------------------+ | ?????????????????????????????????????????????????? | | ?????????????????????????????????????????????????? | | ???????????????????????????????????????##########? | | ???????????????????????????????????????# #? | | ??????????????????????????############## """ #? | | ??????????####????????????# """ #? | | ??????????# <#???????###??# ########### """ #? | | ?????????## #????????# #?# #?????????# #? | | ?????????# #????????# ## #?????????# #? | | ????????## ##????????# # #?????????# ## | | ????????# ###????????# #?????????# T# | | ????????## #????????#### ##????????########### | | ?????????### #???????????## ##?????????????????? | | ???????????# #???????????## #?????????????????? | | ???????????# ##?????###### ! #?????????????????? | | ??????????## ##????### *%##?????????????????? | | ??????????## # #### !=##?????????????????? | | ????????#### # ## #?????????????????? | | ???# ###### ###### ! #?????????????????? | | ???# % =% #?????????????????? | | ???# ## = ##?????????????????? | | ???###### #### ## ##????##???????????? | | ???###### ##### ### d## ##??????????? | | ??## ## #### = ### #??????????? | | ??# #### %## u d k ???????? | | ??# #####*#??# @ ## ????????? | | ??# ## #### #??# # #?# ????????? | | ??## ### ### #?# # # #??## ????????? | | ???## #?# ## #?##### #????# ##????????? | | ????# #?## ## ###????##%#?????####?????????? | | ????# #??#### #?????? ?????????????????? | | ????# ############## #??????# #????????????????? | | ????# #?????# #??????? #????????????????? | | ????######### #?????# #??????? #????????????????? | | ???????????## #?????# #???????? ?????????????????? | | ??????????## #????## #??????????????????????????? | | ?????????##! [#???## ##?????????????????????????? | | ????????## ##### ##????????????????????????? | | ????????# #????????????????????????? | | ????????# ! !#### #????????????????????????? | | ????????## !##??# ##????????????????????????? | | ?????????# #???## ####?????????????????????????? | | ?????????# #????####????????????????????????????? | | ?????????# #????????????????????????????????????? | | ?????????#[[####?????????????????????????????????? | | ???????###!!!%%#?????????????????????????????????? | | ???????#] ! ##%#?????????????????????????????????? | | ???????# #####%#?????????????????????????????????? | | ???????# ##??#[#?????????????????????????????????? | | ??????## ##?#=#?????????????????????????????????? | +----------------------------------------------------+ Best States ------------- Heat Dissipation 25 Energy Generation 14 Energy Capacity 250 Matter Stores 300 Matter Capacity 300 Sight Range 16 Robot Scan Range 14 Terrain Scan Density 10 Weapon Shielding 33 Evasion (%) 40 Recoil Reduction 2 Item Schematics ----------------- None Robot Schematics ------------------ None Fabricated ------------ Nothing Alien Tech Used ----------------- None Achievements -------------- None Challenges ------------ None Game ------ Seed CoolingGravmagMagmablaster Manual? 0 Play Time 00:22:48 Cumulative 10.5 hours Start 2024.04.07 @ 17:05:33 End 2024.04.07 @ 17:25:52 Sessions 1 Manual Loads 0 Difficulty Rogue Special Mode None Game No. 9 Rogue 3 Adventurer 6 Explorer 0 Win Type - Total 0 Types 0/0/0/0/0/0/0/0/0 Lore% 6 Gallery% 12 Achievement% 11 Wizard Run 0 Options --------- Layout 1 ASCII 0 Keyboard 0 Movement Mouse Keybinds 0 Fullscreen 1 Font 24/Smallcaps Map View 50x35 Zoom Use 21% Tactical HUD 1 Map Filters NONE Filters NONE Steam 1 RUN: b353ca5f-dc0b-41b3-9d25-93dbf5ff7023